bitfinex/quotes_ETHUSD_20240718
["timestamp","ask_amount","ask_price","bid_price","bid_amount"]
[1721323466016,2.92153,3422.9,3422.3,0.71116659]
[1721323466186,2.92153,3422.9,3422.3,0.79712995]
[1721323466389,2.92153,3422.9,3422.4,1.046]
[1721323466619,2.92135,3423.1,3422.5,0.08583751]
[1721323466821,5.33133,3423.5,3422.6,2.2514]
[1721323467002,5.33133,3423.5,3422.7,0.08569805]
[1721323467224,2.92124,3423.2,3422.7,0.08569805]
[1721323467446,2.92114,3423.4,3422.7,3.55214281]
[1721323467735,2.92077,3423.8,3423.0,1.046]
[1721323467938,2.92077,3423.8,3423.2,1.046]
[1721323468091,2.92077,3423.8,3423.1,2.2514]
[1721323468092,2.92077,3423.8,3423.1,2.33682599]
[1721323468297,2.92077,3423.8,3423.3,0.08530019]
[1721323468499,3.9666,3424.0,3423.2,0.08536309]
[1721323468705,3.9666,3424.0,3423.4,0.0852373]
[1721323468936,3.9666,3424.0,3423.3,0.08527807]
[1721323469113,3.9666,3424.0,3423.5,0.08515229]
[1721323469437,2.92078,3423.8,3423.6,0.0850145]
[1721323469623,2.92078,3423.8,3423.1,2.2514]
[1721323469950,2.92078,3423.8,3423.2,0.08526607]
[1721323470740,1.046,3424.2,3423.2,1.13126607]
[1721323470741,2.9205,3424.1,3423.2,1.13126607]
[1721323471314,2.9205,3424.1,3423.4,2.92106]
[1721323471828,2.9205,3424.1,3423.5,0.08504931]
[1721323472417,2.9205,3424.1,3423.5,0.49026024]
[1721323472752,2.92038,3424.3,3423.6,2.3292]
[1721323472907,2.92022,3424.4,3423.6,2.3292]
[1721323473106,2.9203,3424.3,3423.7,0.08489973]
[1721323474865,3.96613,3424.5,3423.7,0.08489973]
[1721323475048,2.92013,3424.5,3423.8,0.67862807]
[1721323475210,2.92013,3424.5,3423.9,0.08475782]
[1721323475928,6.88602,3424.7,3423.9,0.08475782]
[1721323476138,3.96599,3424.7,3423.9,0.08475782]
[1721323476335,2.91999,3424.7,3423.9,0.08475782]
[1721323476534,2.91987,3424.8,3424.1,2.293]
[1721323476740,3.96582,3424.9,3424.1,2.293]
[1721323476741,2.91997,3424.7,3424.1,2.293]
[1721323477041,2.91997,3424.7,3424.2,0.08456922]
[1721323478311,5.84001,3424.7,3424.2,0.08456922]
[1721323478508,2.91997,3424.7,3424.2,0.08456922]
[1721323478724,2.92005,3424.6,3424.2,0.08456922]
[1721323479691,2.91998,3424.7,3424.2,0.08456922]
[1721323481266,5.84002,3424.7,3424.2,0.08456922]
[1721323482155,2.92013,3424.5,3424.2,0.08456922]
[1721323483573,2.9203,3424.3,3424.2,0.08456922]
[1721323483793,6.8866,3424.3,3424.2,0.08456922]
[1721323483955,2.92065,3423.9,3423.3,2.3307]
[1721323484688,2.92016,3424.5,3423.3,2.3307]
[1721323484689,2.92057,3424.0,3423.3,3.3767]
[1721323485384,2.92073,3423.8,3423.3,2.3307]
[1721323485773,2.92073,3423.8,3423.3,3.3767]
[1721323486262,2.92073,3423.8,3423.3,2.3307]
[1721323487073,2.92057,3424.0,3423.3,2.3307]
[1721323487279,2.92065,3423.9,3423.4,0.817325]
[1721323487440,2.92065,3423.9,3423.3,2.3307]
[1721323487951,2.92076,3423.8,3423.3,2.3307]
[1721323488362,2.92057,3424.0,3423.3,2.3307]
[1721323488682,2.92086,3423.7,3423.3,2.3307]
[1721323488888,2.92112,3423.4,3423.0,2.2899]
[1721323489071,2.92112,3423.4,3422.7,2.4542]
[1721323489274,2.9211,3423.4,3422.7,2.4542]
[1721323489448,2.92128,3423.2,3422.7,2.4542]
[1721323489645,2.92133,3423.1,3422.7,2.4542]
[1721323489853,2.92141,3423.0,3422.2,2.4542]
[1721323490054,2.92141,3423.0,3422.3,0.24542]
[1721323490272,2.92127,3423.2,3422.2,2.4542]
[1721323490273,2.92165,3422.8,3422.2,2.4542]
[1721323491085,2.92168,3422.7,3422.2,2.4542]
[1721323491388,2.92168,3422.7,3421.7,2.9225]
[1721323491389,2.92192,3422.5,3421.8,2.322]
[1721323492084,2.92189,3422.5,3421.8,2.322]
[1721323492248,2.92189,3422.5,3421.9,0.2322]
[1721323493248,2.92177,3422.6,3421.9,0.2322]
[1721323494308,2.92152,3422.9,3422.0,2.92221]
[1721323494485,2.92159,3422.8,3422.0,2.92221]
[1721323494684,2.92159,3422.8,3422.1,0.839884]
[1721323495078,2.92159,3422.8,3422.2,0.08593523]
[1721323495624,2.92152,3422.9,3422.2,0.08593523]
[1721323495975,2.9216,3422.8,3422.2,0.08593523]
[1721323497706,2.92169,3422.7,3422.2,0.08593523]
[1721323498011,2.92189,3422.5,3422.2,0.08593523]
[1721323498217,5.84343,3422.7,3422.2,0.08593523]
[1721323498390,5.84343,3422.7,3421.8,5.24443]
[1721323498712,2.92176,3422.6,3421.8,5.24443]
[1721323498885,2.92176,3422.6,3421.9,0.9028173]
[1721323501521,2.92185,3422.5,3421.9,0.9028173]
[1721323502100,2.92138,3423.1,3422.1,2.92217]
[1721323502101,2.92158,3422.9,3422.1,2.92217]
[1721323502408,2.92133,3423.1,3422.3,2.92195]
[1721323502409,2.92134,3423.1,3422.3,2.92195]
[1721323502610,2.92134,3423.1,3422.4,0.83423]
[1721323502789,2.92134,3423.1,3422.4,0.92008445]
[1721323502974,2.92138,3423.1,3422.4,0.92008445]
[1721323503178,2.92138,3423.1,3422.4,0.08585445]
[1721323503179,2.92142,3423.0,3422.4,0.08585445]
[1721323503621,2.2578,3423.1,3422.4,0.08585445]
[1721323503837,2.92163,3422.8,3422.4,0.08585445]
[1721323504040,2.92145,3423.0,3422.0,2.4114]
[1721323504253,2.92155,3422.9,3422.5,0.08579152]
[1721323504403,2.92155,3422.9,3422.2,2.92209]
[1721323504605,2.92155,3422.9,3422.1,2.92211]
[1721323504606,2.92143,3423.0,3422.6,0.0857286]
[1721323504809,2.92143,3423.0,3422.1,2.92211]
[1721323504810,2.92143,3423.0,3422.1,5.84422]
[1721323505036,2.92143,3423.0,3422.7,0.08566568]
[1721323505345,2.92133,3423.1,3422.8,0.08560277]
[1721323505529,2.92142,3423.0,3422.8,0.08560277]
[1721323505836,2.92142,3423.0,3422.4,2.466]
[1721323506211,2.92142,3423.0,3422.5,0.08579152]
[1721323506943,8.76525,3422.6,3422.5,0.08579152]
[1721323507155,2.92229,3422.0,3421.5,2.409]
[1721323507507,2.92236,3421.9,3421.6,0.08635799]
[1721323508541,2.92215,3422.2,3421.6,0.08635799]
[1721323508920,5.84432,3422.2,3421.6,0.08635799]
[1721323509236,2.92218,3422.1,3421.6,0.08635799]
[1721323509427,2.92231,3422.0,3421.6,0.08635799]
[1721323509799,2.92249,3421.8,3421.6,0.08635799]
[1721323510222,2.92249,3421.8,3421.3,2.3044]
[1721323510442,2.92231,3422.0,3421.7,0.0862837]
[1721323510643,2.92231,3422.0,3421.3,2.3044]
[1721323510644,5.84465,3422.0,3421.3,2.3044]
[1721323510950,2.92214,3422.2,3421.4,2.92277]
[1721323511104,2.92214,3422.2,3421.5,0.815011]
[1721323511105,5.84432,3422.2,3421.5,0.815011]
[1721323511308,2.9222,3422.1,3421.5,0.815011]
[1721323511534,2.92229,3422.0,3421.6,0.08634666]
[1721323512256,2.92237,3421.9,3421.6,0.08634666]
[1721323512633,2.92237,3421.9,3421.3,2.3044]
[1721323512945,2.92236,3421.9,3421.3,2.827143]
[1721323513126,2.92236,3421.9,3421.4,0.08645798]
[1721323513458,2.92225,3422.1,3421.4,0.08645798]
[1721323513663,2.92227,3422.0,3421.4,0.08645798]
[1721323513863,2.92245,3421.8,3421.4,0.08645798]
[1721323514353,2.92227,3422.0,3421.4,0.08645798]
[1721323514732,2.92238,3421.9,3421.4,0.08645798]
[1721323515947,2.92266,3421.6,3421.4,0.08645798]
[1721323516849,2.92244,3421.8,3421.4,0.08645798]
[1721323517923,2.92252,3421.7,3421.4,0.08645798]
[1721323518643,2.92267,3421.6,3421.4,0.08645798]
[1721323518970,2.92267,3421.6,3420.9,2.3993]
[1721323519147,2.92267,3421.6,3421.5,0.08629476]
[1721323519367,2.92267,3421.6,3420.9,2.3993]
[1721323519662,2.92267,3421.6,3421.5,0.08629476]
[1721323519847,2.92293,3421.3,3420.9,2.3993]
[1721323521569,5.84587,3421.3,3420.9,2.3993]
[1721323521865,2.92293,3421.3,3420.9,2.3993]
[1721323525047,2.92293,3421.3,3420.4,2.92356]
[1721323525048,2.92295,3421.2,3420.4,2.92356]
[1721323525254,5.84606,3421.1,3421.0,0.08650264]
[1721323525571,5.84606,3421.1,3420.1,2.92387]
[1721323525572,2.92325,3420.9,3420.2,2.4279]
[1721323526233,2.92332,3420.8,3420.2,2.4279]
[1721323527137,2.92325,3420.9,3420.2,2.4279]
[1721323527138,2.92339,3420.7,3420.2,2.4279]
[1721323528084,5.84653,3420.9,3420.2,2.4279]
[1721323528287,2.92325,3420.9,3420.2,3.255473]
[1721323528468,2.9233,3420.8,3420.2,3.255473]
[1721323528798,2.92339,3420.7,3420.2,3.255473]
[1721323528952,2.92339,3420.7,3420.2,2.4279]
[1721323529474,2.92339,3420.7,3420.0,2.92397]
[1721323530841,2.92325,3420.9,3420.0,2.92397]
[1721323531069,2.92344,3420.7,3420.0,2.92397]
[1721323531280,2.92344,3420.7,3420.0,3.753499]
[1721323532178,2.469,3421.3,3419.9,2.4472]
[1721323532386,2.9236,3420.5,3419.9,2.4472]
[1721323533601,2.92364,3420.4,3419.9,2.4472]
[1721323535373,2.92394,3420.1,3419.3,2.92454]
[1721323535574,2.92394,3420.1,3419.4,2.71196764]
[1721323535899,2.924,3420.0,3419.4,2.71196764]
[1721323536084,2.92394,3420.1,3419.4,2.71196764]
[1721323536579,2.92359,3420.5,3419.6,2.92429]
[1721323536799,2.92361,3420.5,3419.9,2.3238]
[1721323537001,2.92373,3420.3,3419.9,2.3238]
[1721323537223,2.92361,3420.5,3419.9,2.3238]
[1721323537509,2.92342,3420.7,3419.9,2.3238]
[1721323537675,5.84721,3420.5,3419.9,2.3238]
[1721323537875,2.9236,3420.5,3419.9,2.3238]
[1721323540329,2.92364,3420.4,3420.0,0.08737881]
[1721323540623,2.92364,3420.4,3419.9,2.3238]
[1721323540823,2.92364,3420.4,3420.1,0.0872979]
[1721323541133,2.92341,3420.7,3420.0,0.08736092]
[1721323541288,2.92341,3420.7,3420.2,0.08723489]
[1721323541507,2.92341,3420.7,3420.1,0.0872979]
[1721323541701,2.92341,3420.7,3420.2,0.08724427]
[1721323542113,3.215751,3420.7,3420.3,0.08718126]
[1721323542325,2.92355,3420.5,3419.9,2.3238]
[1721323542538,2.92355,3420.5,3420.0,0.08736177]
[1721323542937,2.92365,3420.4,3419.9,2.3238]
[1721323543105,2.92365,3420.4,3420.1,0.08729875]
[1721323543311,2.92365,3420.4,3420.2,0.08723574]
[1721323543865,6.4612761,3420.4,3420.3,0.08717274]
[1721323544270,2.92402,3420.0,3419.1,2.3496]
[1721323544429,2.92421,3419.8,3419.1,2.3496]
[1721323544759,2.92421,3419.8,3419.2,0.08786602]
[1721323545729,2.924,3420.0,3419.2,3.01250602]
[1721323545934,2.924,3420.0,3419.3,0.5362106]
[1721323546151,2.92411,3419.9,3419.4,0.08773993]
[1721323547358,2.92384,3420.2,3419.4,0.08773993]
[1721323547530,2.92397,3420.0,3419.4,0.08773993]
[1721323548621,2.92421,3419.8,3419.4,0.08773993]
[1721323548826,2.92421,3419.8,3419.1,5.27427]
[1721323549036,2.92421,3419.8,3419.2,0.08786602]
[1721323549576,2.92424,3419.7,3419.2,0.08786602]
[1721323550634,2.92413,3419.9,3419.2,0.08786602]
[1721323550835,2.779101,3419.9,3419.2,0.08786602]
[1721323551036,2.92445,3419.5,3419.2,0.08786602]
[1721323551458,2.92445,3419.5,3418.8,2.3795]
[1721323551666,2.92445,3419.5,3419.3,0.08487837]
[1721323551848,2.92445,3419.5,3418.8,2.3795]
[1721323552062,2.92445,3419.5,3419.4,0.08481533]
[1721323552238,2.92445,3419.5,3418.8,2.3795]
[1721323552443,2.92445,3419.5,3419.4,0.08481533]
[1721323552700,2.92424,3419.7,3419.0,2.92482]
[1721323552975,2.92424,3419.7,3419.4,0.08481533]
[1721323553146,2.92424,3419.7,3419.3,2.4412]
[1721323553354,2.92424,3419.7,3419.5,0.0847523]
[1721323553548,2.92424,3419.7,3419.4,0.08481533]
[1721323553780,2.92424,3419.7,3419.6,0.08468926]
[1721323554015,2.9241,3419.9,3419.6,0.08468926]
[1721323554178,2.9241,3419.9,3418.8,0.822976]
[1721323554179,2.92416,3419.8,3418.8,5.17957]
[1721323554498,2.92431,3419.6,3418.9,0.08513057]
[1721323555315,2.92449,3419.4,3418.9,0.08513057]
[1721323556179,2.92471,3419.2,3418.9,0.08513057]
[1721323556377,0.58492,3419.2,3418.9,0.08513057]
[1721323556581,2.92524,3418.6,3418.2,2.2774]
[1721323556797,2.92534,3418.4,3417.9,2.2774]
[1721323557094,5.85048,3418.6,3418.3,0.08558739]
[1721323557268,2.92527,3418.5,3417.9,2.2774]
[1721323557465,2.92527,3418.5,3418.4,0.0855806]
[1721323557697,2.92527,3418.5,3417.9,2.2774]
[1721323558003,2.92527,3418.5,3418.4,0.08558231]
[1721323558503,2.92495,3418.9,3418.4,0.08558231]
[1721323558667,3.446947,3419.1,3418.0,2.92565]
[1721323558870,3.446947,3419.1,3418.5,0.08551923]
[1721323559179,3.446947,3419.1,3418.6,0.0854664]
[1721323559383,0.522167,3419.1,3418.3,5.20281]
[1721323559595,5.9248,3419.1,3418.3,6.015649]
[1721323559911,2.92483,3419.0,3418.4,0.08559254]
[1721323560068,2.92475,3419.1,3418.4,3.01092254]
[1721323560410,2.92463,3419.3,3418.5,2.92518]
[1721323560711,5.84947,3419.2,3418.6,0.0854664]
[1721323560909,2.92473,3419.2,3418.4,2.92526]
[1721323561091,2.92473,3419.2,3418.7,0.08540333]
[1721323561502,2.92434,3419.6,3418.8,2.3703]
[1721323561830,2.92434,3419.6,3418.8,2.45564027]
[1721323561831,2.92449,3419.4,3418.8,2.45564027]
[1721323562379,2.92434,3419.6,3418.8,2.45564027]
[1721323562581,2.92434,3419.6,3418.9,2.92489]
[1721323562892,2.92449,3419.4,3419.0,0.08524655]
[1721323563129,3.739063,3419.4,3419.0,0.08524655]
[1721323563437,3.739063,3419.4,3419.1,0.08516815]
[1721323563718,2.92434,3419.6,3418.8,2.3703]
[1721323563921,2.2969,3419.7,3419.2,0.0851051]
[1721323564146,2.92437,3419.6,3418.8,5.29529]
[1721323564292,2.92446,3419.5,3419.3,0.08504206]
[1721323564495,3.509343,3419.5,3418.8,2.3703]
[1721323564694,2.92446,3419.5,3418.8,2.3703]
[1721323564938,2.92446,3419.5,3418.9,0.08530022]
[1721323565298,2.92428,3419.7,3418.9,3.01017022]
[1721323565500,2.92401,3420.0,3419.1,2.92473]
[1721323565747,2.92401,3420.0,3419.0,2.4111]
[1721323565932,5.92406,3419.9,3419.2,3.00975254]
[1721323566130,5.21218,3419.8,3419.1,0.08516559]
[1721323566439,2.92432,3419.6,3419.2,0.08510254]
[1721323566598,2.92432,3419.6,3418.8,2.92495]
[1721323566794,3.0,3419.5,3418.9,0.0852917]
[1721323568113,3.0,3419.6,3418.7,2.92501]
[1721323568314,5.92436,3419.6,3419.0,0.08522864]
[1721323568537,3.0,3419.5,3418.8,2.92497]
[1721323568737,3.0,3419.5,3419.1,0.08516559]
[1721323568904,3.0,3419.5,3418.8,2.92497]
[1721323569105,3.0,3419.5,3418.7,2.92501]
[1721323569106,3.0,3419.5,3419.2,0.08510254]
[1721323569311,3.0,3419.7,3418.9,2.92487]
[1721323569545,5.92425,3419.7,3419.3,0.0850395]
[1721323569742,7.037893,3419.7,3418.9,2.92487]
[1721323570048,7.037893,3419.7,3419.0,2.92482]
[1721323570049,4.113643,3419.7,3419.0,2.92482]
[1721323570208,4.113643,3419.7,3419.1,0.08516559]
[1721323570722,2.92384,3420.2,3419.3,2.92452]
[1721323570918,2.92384,3420.2,3419.4,0.05848412]
[1721323571148,2.92384,3420.2,3419.4,0.14338376]
[1721323571305,2.92384,3420.2,3419.5,2.92438]
[1721323571710,3.5376061,3420.4,3419.6,3.0090314]
[1721323571945,3.5376061,3420.4,3419.6,0.0847514]
[1721323572350,2.9238,3420.2,3419.6,0.0847514]
[1721323572511,3.0,3420.1,3419.6,0.0847514]
[1721323572712,5.92382,3420.2,3419.6,0.0847514]
[1721323572968,5.92382,3420.2,3418.1,3.0]
[1721323572969,2.4278,3420.1,3418.7,7.44]
[1721323573270,5.84828,3419.8,3419.7,0.08458932]
[1721323573422,2.9244,3419.5,3418.7,2.92502]
[1721323573749,2.9244,3419.5,3418.8,0.08511229]
[1721323573932,3.0,3419.4,3418.8,0.08511229]
[1721323574247,5.92454,3419.4,3418.6,2.92512]
[1721323574551,2.92479,3419.1,3418.7,0.08517535]
[1721323575046,2.92479,3419.1,3418.5,2.4082]
[1721323575281,2.92491,3418.9,3418.5,2.4082]
[1721323575543,3.809729,3419.1,3418.6,0.08523841]
[1721323576043,2.92483,3419.0,3418.6,0.08523841]
[1721323576415,3.809679,3419.1,3418.6,0.08523841]
[1721323576623,2.92474,3419.1,3418.6,0.08523841]
[1721323577260,2.92498,3418.9,3418.2,2.3154]
[1721323577428,2.92498,3418.9,3418.3,0.08542763]
[1721323578246,3.0,3419.0,3418.3,0.08542763]
[1721323578554,2.92526,3418.5,3418.3,0.08542763]
[1721323579073,2.92526,3418.5,3418.4,0.08536456]
[1721323579393,2.92503,3418.8,3417.8,2.286]
[1721323579672,2.92517,3418.6,3417.8,5.21178]
[1721323579858,2.92517,3418.6,3417.9,0.60685798]
[1721323580377,2.92503,3418.8,3418.0,2.92561]
[1721323580543,3.0,3418.7,3418.1,2.92559]
[1721323580743,3.0,3418.7,3418.1,3.0111438]
[1721323581072,3.0,3418.7,3418.4,5.27992]
[1721323581372,2.92489,3419.0,3418.5,0.08530148]
[1721323581676,3.0,3418.9,3418.5,0.08530148]
[1721323582175,5.92492,3418.9,3418.5,0.08530148]
[1721323582579,3.0,3418.9,3418.5,0.08530148]
[1721323582871,2.92492,3418.9,3418.5,0.08530148]
[1721323583077,2.92517,3418.6,3418.5,0.08530148]
[1721323583290,2.92517,3418.6,3418.0,2.3546]
[1721323583577,3.0,3418.8,3418.5,0.08530148]
[1721323583787,3.0,3418.8,3418.2,2.92543]
[1721323583986,3.0,3419.0,3418.6,0.08533395]
[1721323584142,3.0,3419.0,3418.4,2.92533]
[1721323584143,3.0,3419.2,3418.4,2.92533]
[1721323584447,2.92484,3419.0,3418.3,2.3546]
[1721323584635,2.92506,3418.8,3418.4,0.08546009]
[1721323585043,2.92513,3418.7,3418.4,0.08546009]
[1721323585270,2.92513,3418.7,3417.9,2.92569]
[1721323585271,2.92513,3418.7,3418.0,2.3546]
[1721323585485,2.92492,3418.9,3418.1,3.01122933]
[1721323585685,5.92506,3418.8,3418.1,0.08564933]
[1721323586490,3.0,3418.8,3418.1,3.01118933]
[1721323586690,2.92496,3418.9,3418.1,3.01118933]
[1721323586902,5.92507,3418.8,3418.1,3.01118933]
[1721323587056,5.92507,3418.8,3418.1,3.84034526]
[1721323587257,3.0,3418.8,3418.1,6.76586526]
[1721323587480,5.92498,3418.9,3418.1,3.84032526]
[1721323588167,5.92498,3418.9,3418.2,2.92551]
[1721323588564,5.92498,3418.9,3418.3,0.08552317]
[1721323588765,3.0,3418.9,3418.3,3.01089317]
[1721323588977,3.0,3419.0,3418.5,2.92525]
[1721323589190,2.92459,3419.3,3418.5,2.92525]
[1721323589191,3.0,3419.2,3418.5,2.92525]
[1721323589503,3.0,3419.2,3418.6,0.08533395]
[1721323589706,3.0,3419.2,3418.6,3.01044395]
[1721323589868,2.92443,3419.5,3418.6,3.01044395]
[1721323589869,5.92453,3419.4,3418.7,0.89667999]
[1721323590197,5.92453,3419.4,3418.8,0.08520782]
[1721323590198,2.92468,3419.2,3418.8,0.08520782]
[1721323590403,3.0,3419.1,3418.8,0.08520782]
[1721323590705,2.92474,3419.1,3418.9,0.08514476]
[1721323590859,5.92457,3419.3,3418.9,0.08514476]
[1721323591069,2.92466,3419.2,3418.5,2.92525]
[1721323591307,3.0,3419.1,3418.6,0.90584595]
[1721323592009,3.0,3419.1,3418.6,0.08533395]
[1721323592165,5.92474,3419.1,3418.6,0.08533395]
[1721323592500,5.92474,3419.1,3418.4,2.3546]
[1721323592501,5.92474,3419.1,3418.7,0.08527088]
[1721323592906,5.92474,3419.1,3418.4,5.27993]
[1721323593077,5.92474,3419.1,3418.8,0.08520782]
[1721323593279,5.92474,3419.1,3418.4,5.27993]
[1721323593459,5.92474,3419.1,3418.9,0.08514476]
[1721323593663,3.0,3419.1,3418.5,2.92522]
[1721323593902,3.0,3419.1,3418.6,0.08540813]
[1721323594117,5.92474,3419.1,3418.6,0.08540813]
[1721323595484,3.0,3419.1,3418.6,0.08540813]
[1721323595690,2.92505,3418.8,3418.2,2.2974]
[1721323595892,2.92505,3418.8,3418.7,0.08532543]
[1721323596113,2.92505,3418.8,3418.2,2.2974]
[1721323596786,2.92514,3418.7,3418.3,0.08557772]
[1721323596989,2.92514,3418.7,3418.2,2.2974]
[1721323597397,2.92514,3418.7,3418.3,0.08558198]
[1721323597595,5.84991,3418.9,3418.2,2.2974]
[1721323597784,2.92492,3418.9,3418.3,0.08558198]
[1721323599131,2.92501,3418.8,3418.3,0.08558198]
[1721323599293,2.92509,3418.7,3418.3,0.08558198]
[1721323599599,0.584993,3418.8,3418.2,2.2974]
[1721323599797,3.0,3419.3,3418.3,0.08462209]
[1721323600014,2.92417,3419.8,3418.6,2.92512]
[1721323600015,0.14884297,3419.2,3418.6,2.92512]
[1721323600188,2.92454,3419.4,3418.6,2.92512]
[1721323600389,3.14883134,3419.3,3418.7,0.0843698]
[1721323600622,3.0,3419.3,3418.7,2.92507]
[1721323600795,3.0,3419.5,3418.7,2.92507]
[1721323601009,0.1488205,3419.4,3418.8,0.08430674]
[1721323601206,3.818944,3419.5,3418.8,0.08430674]
[1721323601532,0.1488232,3419.4,3418.8,0.08430674]
[1721323601753,2.92459,3419.3,3418.8,0.08430674]
[1721323601967,9.64688417,3420.1,3418.9,2.4848]
[1721323602108,14.9275,3420.6,3419.5,2.4848]
[1721323602109,2.4575,3420.6,3419.5,2.4848]
[1721323602428,2.92379,3420.3,3419.6,0.08367608]
[1721323602629,2.92396,3420.1,3419.6,0.08367608]
[1721323603440,2.92379,3420.3,3419.6,0.08367608]
[1721323603642,3.0,3420.0,3419.6,0.08367608]
[1721323603847,3.0,3420.2,3419.6,0.08367608]
[1721323604011,3.0,3420.2,3419.6,3.00793608]
[1721323604349,2.92356,3420.5,3419.6,3.00793608]
[1721323604350,3.0,3420.4,3419.7,2.92421]
[1721323604563,5.92367,3420.4,3419.7,2.92421]
[1721323604711,5.92367,3420.4,3419.8,0.0833887]
[1721323607973,5.92367,3420.4,3419.5,5.40914]
[1721323607974,2.92381,3420.2,3419.5,2.4848]
[1721323608144,2.92381,3420.2,3419.9,0.08323343]
[1721323608336,9.732083,3420.4,3419.5,2.4848]
[1721323608537,2.92374,3420.3,3420.0,0.08317041]
[1721323608740,2.92374,3420.3,3419.6,2.92431]
[1721323608741,3.0,3420.2,3419.6,2.92431]
[1721323608982,3.0,3420.2,3420.1,0.0831074]
[1721323609179,3.0,3420.2,3419.6,2.92431]
[1721323609381,3.0,3420.2,3420.1,0.08308685]
[1721323609564,3.0,3420.2,3419.6,2.92431]
[1721323609775,3.0,3420.2,3420.1,0.08308685]
[1721323609944,3.0,3420.2,3419.7,2.92417]
[1721323610139,5.92364,3420.4,3420.1,0.08305352]
[1721323610344,5.92364,3420.4,3419.7,2.92417]
[1721323610854,5.92364,3420.4,3419.8,0.08324001]
[1721323611055,2.92387,3420.2,3419.8,0.08324001]
[1721323611253,6.808354,3420.4,3419.6,2.92431]
[1721323611477,6.808354,3420.4,3419.7,0.08330645]
[1721323612154,2.92381,3420.2,3419.7,0.08330645]
[1721323612358,2.92381,3420.2,3419.5,5.40918]
[1721323612571,2.92381,3420.2,3419.8,0.0831725]
[1721323612780,2.92381,3420.2,3419.5,5.40918]
[1721323613091,9.732064,3420.4,3419.6,2.92431]
[1721323613240,5.92364,3420.4,3419.7,5.47664808]
[1721323614376,3.0,3420.4,3419.7,5.47660808]
[1721323614578,3.0,3420.5,3419.8,2.92409]
[1721323615001,3.0,3420.5,3420.0,2.4692]
[1721323615142,2.9235,3420.6,3420.0,2.4692]
[1721323615349,2.92332,3420.8,3420.1,0.08298089]
[1721323615659,3.0,3420.7,3420.1,0.08298089]
[1721323615860,2.92332,3420.8,3420.1,0.08298089]
[1721323616468,2.9234,3420.7,3420.1,0.08298089]
[1721323616644,3.0,3420.6,3420.1,0.08298089]
[1721323617384,3.0,3420.6,3420.1,3.60835641]
[1721323617565,5.9233,3420.8,3420.1,3.60835641]
[1721323617881,5.9233,3420.8,3420.1,3.00686089]
[1721323618085,2.9234,3420.7,3420.1,0.08298089]
[1721323618287,3.0,3420.6,3420.1,0.08298089]
[1721323619298,2.92355,3420.5,3420.1,0.08298089]
[1721323622405,3.0,3420.6,3420.1,0.08298089]
[1721323623111,5.92346,3420.6,3420.1,0.08298089]
[1721323624164,2.92357,3420.5,3420.1,0.08298089]
[1721323626120,0.884695,3420.5,3420.1,0.08298089]
[1721323626416,2.3043,3420.6,3420.1,0.08298089]
[1721323626712,2.3043,3420.6,3419.7,2.4533]
[1721323626713,2.92378,3420.3,3419.7,2.4533]
[1721323626915,2.92378,3420.3,3420.2,0.08280689]
[1721323627112,2.92378,3420.3,3419.7,2.4533]
[1721323627315,2.92378,3420.3,3420.2,0.08280689]
[1721323627515,2.92365,3420.4,3419.7,2.4533]
[1721323627516,2.9238,3420.2,3419.7,2.4533]
[1721323628687,5.84735,3420.4,3419.7,2.4533]
[1721323628882,5.84736,3420.4,3419.8,0.53776]
[1721323629841,2.92374,3420.3,3419.8,0.53776]
[1721323630127,2.92374,3420.3,3419.9,0.08291212]
[1721323630522,2.92374,3420.3,3419.7,2.4533]
[1721323630724,2.92374,3420.3,3420.0,0.08281577]
[1721323630899,2.92374,3420.3,3419.7,2.4533]
[1721323631099,2.92374,3420.3,3420.1,0.08275276]
[1721323631300,2.92374,3420.3,3419.7,2.4533]
[1721323631643,2.92374,3420.3,3420.2,0.08268975]
[1721323631796,2.92374,3420.3,3419.7,5.37752]
[1721323631998,5.84683,3420.7,3420.2,0.08268975]
[1721323632220,5.84684,3420.7,3420.0,2.4588]
[1721323632427,2.9234,3420.7,3420.0,6.213445]
[1721323632599,2.9234,3420.7,3420.1,0.08275276]
[1721323633542,2.92349,3420.6,3420.1,0.08275276]
[1721323633703,2.92355,3420.5,3420.1,0.08275276]
[1721323635206,2.9234,3420.7,3420.1,0.92171904]
[1721323635739,5.84684,3420.7,3420.1,0.92171904]
[1721323635946,5.84684,3420.7,3420.1,0.08275276]
[1721323636109,2.9234,3420.7,3420.1,0.08275276]
[1721323637247,2.92352,3420.6,3420.1,0.08275276]
[1721323637709,2.92355,3420.5,3420.1,0.08275276]
[1721323638846,2.9234,3420.7,3420.1,0.08275276]
[1721323641227,2.9234,3420.7,3420.1,3.00664276]
[1721323641435,2.92325,3420.9,3420.2,2.9238]
[1721323641617,2.92325,3420.9,3420.3,2.4716]
[1721323641820,2.92325,3420.9,3420.3,2.55402173]
[1721323643213,3.747515,3420.9,3420.3,2.55402173]
[1721323643412,2.92342,3420.7,3420.3,0.08242173]
[1721323643830,2.92342,3420.7,3420.0,2.4514]
[1721323643831,2.92342,3420.7,3420.0,5.37536]
[1721323644039,2.92342,3420.7,3420.4,0.08234083]
[1721323644312,3.2981885,3420.7,3420.5,0.08227783]
[1721323644461,3.2981885,3420.7,3420.0,5.37536]
[1721323644658,3.2981885,3420.7,3420.1,0.08252985]
[1721323644966,2.92348,3420.6,3420.1,0.08252985]
[1721323646083,0.14876919,3420.5,3420.1,0.08252985]
[1721323646288,0.14876971,3420.4,3420.1,0.08252985]
[1721323646463,2.92348,3420.6,3420.1,0.08252985]
[1721323646667,0.14877058,3420.5,3420.1,0.08252985]
[1721323646867,0.14877058,3420.4,3420.1,0.08252985]
[1721323647068,2.92348,3420.6,3420.1,0.08252985]
[1721323647269,0.14877085,3420.5,3420.1,0.08252985]